Cogmind - Beta 9.6 @@@ ROGUE MODE // 2020.06.07 @ 13:11:25 Player: Vectis Result: Escaped! Performance ------------- Evolutions (9) 4500 Regions Visited (27) 5400 Robots Destroyed (170) 850 Value Destroyed (6206) 6206 Prototype IDs (93) 1860 Alien Tech Used (0) 0 Bonus (15975) 15975 TOTAL SCORE: 34791 Bonus ------- High Alert Combat Kills 624 Follower Combat Kills 8216 Network Hubs Disabled 200 Aligned with FarCom 300 Met Data Miner 300 Met Warlord at Base 500 MAIN.C Attacked Warlord 500 Built Enhanced Grunts 300 A7 Reached Mainframe 300 Met R17 at Cetus 500 Met Warlord at Research 2000 Win 3000 Friendly Fire -765 Cogmind --------- Core Integrity 1600/1600 Matter 300/300 Energy 174/190 System Corruption 0% Temperature Cool (12) Movement Flying (27) Location To Epsilon Eridani Parts ------- > --- POWER (2) -------- Light Quantum Reactor > --- PROPULSION (4) --- Diametric Drive Improved Diametric Drive Impulse Thruster Array > --- UTILITY (17) ----- Medium Storage Unit Triangulator Advanced Signal Interpreter Improved Melee Analysis Suite Advanced Melee Analysis Suite Advanced Melee Analysis Suite Experimental Armor Integrity Analyzer Microactuators Experimental ECM Suite Advanced Reaction Control System Improved Propulsion Shielding Hacking Suite Improved Hacking Suite Improved System Shield Improved System Shield Advanced System Shield Advanced System Shield > --- WEAPON (2) ------- Advanced Datajack Enhanced Force Lance > --- INVENTORY (8) ---- Diametric Drive System Shield Vortex Shotgun Vortex Rail Vortex Rail Power Sword Peak State ------------ > --- POWER ------------ Light Quantum Reactor > --- PROPULSION ------- Diametric Drive Improved Diametric Drive Impulse Thruster Array > --- UTILITY ---------- Medium Storage Unit Triangulator Advanced Signal Interpreter Improved Melee Analysis Suite Advanced Melee Analysis Suite Advanced Melee Analysis Suite Experimental Armor Integrity Analyzer Microactuators Experimental ECM Suite Advanced Reaction Control System Improved Propulsion Shielding Hacking Suite Improved Hacking Suite Improved System Shield Improved System Shield Advanced System Shield Advanced System Shield > --- WEAPON ----------- Advanced Datajack Field Lobotomy Kit > --- INVENTORY -------- Light Quantum Reactor Diametric Drive System Shield Vortex Shotgun Vortex Rail Vortex Rail Power Sword Enhanced Force Lance [Rating: 152] Favorites ----------- Power Light Nuclear Core Engine Ion Engine Power Core Light Nuclear Core Reactor Light Quantum Reactor Propulsion Improved VTOL Module Treads Light Treads Leg Titanium Leg Flight Unit Improved VTOL Module Utility Hacking Suite Device Triangulator Storage Medium Storage Unit Processor Improved Melee Analysis Suite Hackware Hacking Suite Protection Improved Propulsion Shielding Weapon Spear Energy Gun EM Pulse Gun Ballistic Gun Assault Rifle Launcher Mini Grenade Launcher Special Weapon Mining Laser Slashing Weapon Power Sword Piercing Weapon Spear Special Melee Weapon Advanced Datajack Build | -11 -10 -10 -10 -9 -8 -7 -6 -6 -6 -6 -5 -5 -5 -5 -5 -5 -4 -4 -4 -4 -4 -4 -3 -3 -3 -2 -1 ------- Run | Scr Mat Min Exi Min Mat Fac Fac Low Low Dat Pro Fac Ext Cet Arc Hub Fac Was Fac Upp Upp War Pro Res Arm Res Acc Slots Evolved 18 | . . . . . 4 2 2 . . . . 2 . . . . 2 . . . . . . 2 . 2 2 Power 1 | . . . . . . . . . . . . . . . . . . . . . . . . . . . 1 Propulsion 2 | . . . . . 1 . . . . . . . . . . . . . . . . . . . . . 1 Utility 15 | . . . . . 3 2 2 . . . . 2 . . . . 2 . . . . . . 2 . 2 . Weapon . | . . . . . . . . . . . . . . . . . . . . . . . . . . . . Parts Attached 258 | 6 45 6 2 . 56 17 8 . . . . 5 6 1 6 2 6 1 42 1 1 15 . 3 5 12 12 Power 15 | 1 1 . 1 . 3 2 1 . . . . 1 . . . . . . 3 . . . . . . . 2 Engine 3 | 1 1 . 1 . . . . . . . . . . . . . . . . . . . . . . . . Core 10 | . . . . . 3 2 1 . . . . 1 . . . . . . 3 . . . . . . . . Reactor 2 | . . . . . . . . . . . . . . . . . . . . . . . . . . . 2 Propulsion 60 | 2 17 3 . . 13 5 1 . . . . 2 1 . . . 2 . 7 . 1 2 . . 1 1 2 Treads 23 | 2 11 3 . . 7 . . . . . . . . . . . . . . . . . . . . . . Leg 1 | . . . . . 1 . . . . . . . . . . . . . . . . . . . . . . Wheel . | . . . . . . . . . . . . . . . . . . . . . . . . . . . . Hover . | . . . . . . . . . . . . . . . . . . . . . . . . . . . . Flight 36 | . 6 . . . 5 5 1 . . . . 2 1 . . . 2 . 7 . 1 2 . . 1 1 2 Utility 102 | 1 11 . 1 . 7 7 4 . . . . 2 2 . 5 1 3 1 27 1 . 12 . 3 4 8 2 Device 40 | . 4 . . . 1 2 . . . . . . . . . . 1 1 15 1 . 7 . 1 2 5 . Storage 8 | 1 4 . 1 . 1 . . . . . . . . . . . . . 1 . . . . . . . . Processor 11 | . . . . . 1 . . . . . . . . . . . . . 4 . . 4 . . . 2 . Hackware 37 | . . . . . 3 5 4 . . . . 2 2 . 5 1 2 . 7 . . . . 2 2 . 2 Protection 6 | . 3 . . . 1 . . . . . . . . . . . . . . . . 1 . . . 1 . Artifact . | . . . . . . . . . . . . . . . . . . . . . . . . . . . . Weapon 81 | 2 16 3 . . 33 3 2 . . . . . 3 1 1 1 1 . 5 . . 1 . . . 3 6 Energy Gun 3 | . 2 . . . . . . . . . . . . . . 1 . . . . . . . . . . . Energy Cannon . | . . . . . . . . . . . . . . . . . . . . . . . . . . . . Ballistic Gun 31 | 2 10 2 . . 17 . . . . . . . . . . . . . . . . . . . . . . Ballistic Cannon . | . . . . . . . . . . . . . . . . . . . . . . . . . . . . Launcher 5 | . . 1 . . 4 . . . . . . . . . . . . . . . . . . . . . . Special Weapon 8 | . 4 . . . . . . . . . . . 1 . . . . . . . . . . . . . 3 Impact Weapon . | . . . . . . . . . . . . . . . . . . . . . . . . . . . . Slashing Weapon 17 | . . . . . 12 1 2 . . . . . . . . . . . 1 . . 1 . . . . . Piercing Weapon 9 | . . . . . . 2 . . . . . . 1 1 . . . . 1 . . . . . . 2 2 Special Melee Weapon 8 | . . . . . . . . . . . . . 1 . 1 . 1 . 3 . . . . . . 1 1 Unidentified Prototypes 12 | . . . . . 3 1 1 . . . . 1 . . . . . . 1 . . 3 . 1 . 1 . Parts Lost 55 | . . 4 . . 3 5 4 . . . . . 2 1 1 . 1 . 19 . 6 . . 6 2 . 1 Power 7 | . . 1 . . . 2 1 . . . . . . . . . . . 2 . . . . . . . 1 Propulsion 8 | . . 2 . . 2 1 . . . . . . . . . . . . 1 . 2 . . . . . . Utility 32 | . . . . . . 2 2 . . . . . 2 . . . 1 . 13 . 4 . . 6 2 . . Weapon 8 | . . 1 . . 1 . 1 . . . . . . 1 1 . . . 3 . . . . . . . . Highest Loss Streak 6 | . . 4 . . 2 2 2 . . . . . 2 1 1 . 1 . 5 . 6 . . 2 2 . 1 Average Slot Usage (%) 96 | . 93 96 82 85 89 99 98 100 100 100 100 100 99 100 99 100 94 94 90 84 82 88 100 91 86 90 91 Core 5 | . . . . . 8 6 5 6 6 6 6 5 5 5 5 5 5 5 4 5 5 5 5 4 4 4 . Treads 3 | . 22 28 28 28 23 . . . . . . . . . . . . . . . . . . . . . . Flight 15 | . 5 . . . 2 23 20 20 20 20 20 17 17 17 17 17 10 10 9 10 10 15 15 14 10 8 11 Device 2 | . 4 . . . . . . . . . . . . . . . 2 5 6 10 10 15 15 11 11 15 16 Storage 6 | . 13 28 20 14 9 7 6 6 6 6 6 5 5 5 5 5 5 5 4 5 5 5 5 4 4 4 4 Processor 2 | . . . . . 5 . . . . . . . . . . . . . 4 15 15 19 26 20 19 24 23 Hackware 42 | . . . . . 18 45 51 53 53 53 53 58 57 58 58 58 59 57 49 31 30 15 15 20 21 17 20 Ballistic Gun 2 | . 22 27 28 28 14 . . . . . . . . . . . . . . . . . . . . . . Piercing Weapon 8 | . . . . . . 14 12 6 6 6 6 5 4 5 5 5 5 5 4 5 5 5 5 4 4 4 3 Special Melee Weapon 1 | . . . . . . . . . . . . . 4 5 4 4 4 5 4 . . . . . . 3 4 Naked Turns . | . . . . . . . . . . . . . . . . . . . . . . . . . . . . Heaviest Build 96 | 12 40 40 89 89 96 18 18 18 18 18 18 18 22 16 16 20 20 19 21 19 19 24 24 24 27 34 43 Greatest Support 68 | 40 46 46 46 46 68 20 20 20 20 20 20 24 25 25 25 25 32 31 32 32 32 26 26 26 37 37 44 Greatest Overweight (x) 4 | . 2 . 1 1 2 1 . . . . . . . . . . . . 4 . . . . . . . . Average Overweight (x) . | . . . . 1 . . . . . . . . . . . . . . . . . . . . . . . Largest Inventory Capacity 24 | 6 16 16 24 24 24 8 8 8 8 8 8 8 8 8 8 8 8 8 8 8 8 8 8 8 8 8 8 Average Capacity 9 | 5 8 16 20 24 22 8 8 8 8 8 8 8 8 8 8 8 8 8 7 8 8 8 8 8 8 8 8 Most Carried 24 | 4 16 16 23 23 24 8 8 8 8 8 8 8 8 8 8 8 8 8 8 8 7 8 8 8 8 8 8 Average Carried 8 | 2 7 15 18 23 22 7 6 8 8 8 8 7 7 7 7 7 7 8 6 7 6 6 8 7 7 7 7 Final Capacity 24 | 6 16 16 24 24 8 8 8 8 8 8 8 8 8 8 8 8 8 8 8 8 8 8 8 8 8 8 8 Final Carried 23 | 4 16 15 23 23 8 8 8 8 8 8 8 8 8 7 8 8 8 8 8 7 6 8 8 7 8 8 6 Class Distribution -------------------- 45% | Wizard-Sprinter 18% | Wizard-Mutant 15% | Commander-Sprinter 7% | Mutant 7% | Hauler-Mutant 4% | Hacker-Sprinter Dominant Class ---------------- Mutant | -10/Materials Mutant | -10/Mines Hauler-Mutant | -10/Exiles Hauler-Mutant | -9/Mines Hauler-Mutant | -8/Materials Wizard-Sprinter | -7/Factory Wizard-Sprinter | -6/Factory Wizard-Sprinter | -6/Lower Caves Wizard-Sprinter | -6/Lower Caves Wizard-Sprinter | -6/Data Miner Wizard-Sprinter | -5/Proximity Caves Wizard-Sprinter | -5/Factory Commander-Sprinter | -5/Extension Wizard-Sprinter | -5/Cetus Wizard-Sprinter | -5/Archives Wizard-Sprinter | -5/Hub_04(d) Wizard-Mutant | -4/Factory Wizard-Mutant | -4/Waste Wizard-Mutant | -4/Factory Wizard-Mutant | -4/Upper Caves Wizard-Mutant | -4/Upper Caves Hacker-Sprinter | -4/Warlord Hacker-Sprinter | -3/Proximity Caves Wizard-Ninja | -3/Research Hacker-Mutant | -3/Armory Hacker-Sprinter | -2/Research Wizard-Sprinter | -1/Access Resources | -11 -10 -10 -10 -9 -8 -7 -6 -6 -6 -6 -5 -5 -5 -5 -5 -5 -4 -4 -4 -4 -4 -4 -3 -3 -3 -2 -1 ----------- Run | Scr Mat Min Exi Min Mat Fac Fac Low Low Dat Pro Fac Ext Cet Arc Hub Fac Was Fac Upp Upp War Pro Res Arm Res Acc Matter Collected 3615 | 240 629 88 60 . 1170 160 80 . . . . 50 40 20 60 10 65 . 485 15 . . . 19 189 100 135 Remotely . | . . . . . . . . . . . . . . . . . . . . . . . . . . . . Salvage Created 7017 | . 651 130 . . 1385 878 234 . . . 148 24 212 . 305 270 98 . 2118 . 58 . . . 234 49 223 Parts 391 | . 41 5 . . 105 56 11 . . . 5 2 7 . 32 8 2 . 94 . 2 . . . 11 4 6 Haulers Intercepted 10 | . 2 . . . 3 . . . . . . . . . . 2 1 . 2 . . . . . . . . Recyclers Shooed . | . . . . . . . . . . . . . . . . . . . . . . . . . . . . Parts Field Recycled . | . . . . . . . . . . . . . . . . . . . . . . . . . . . . Retrieved Matter . | . . . . . . . . . . . . . . . . . . . . . . . . . . . . Parts Self-Destructed 77 | . . . . . . . . 22 10 . 20 . . . . . . . . . 8 17 . . . . . Prevented 41 | . . . . . . . . . . . . . . . . . . . . 3 9 29 . . . . . Kills | -11 -10 -10 -10 -9 -8 -7 -6 -6 -6 -6 -5 -5 -5 -5 -5 -5 -4 -4 -4 -4 -4 -4 -3 -3 -3 -2 -1 ------- Run | Scr Mat Min Exi Min Mat Fac Fac Low Low Dat Pro Fac Ext Cet Arc Hub Fac Was Fac Upp Upp War Pro Res Arm Res Acc Combat Hostiles Destroyed 112 | . 11 13 . . 29 11 4 . . . 2 . 3 . . . . . 30 . 2 . . . 5 . 2 Melee 58 | . . . . . . 11 4 . . . 2 . 3 . . . . . 29 . 2 . . . 5 . 2 Guns 40 | . 11 6 . . 23 . . . . . . . . . . . . . . . . . . . . . . AOE 13 | . . 7 . . 6 . . . . . . . . . . . . . . . . . . . . . . Classes Destroyed 15 | . 4 1 . . 5 3 . . . . 1 . . . . . . . 1 . . . . . . . . Worker 1 | . . . . . 1 . . . . . . . . . . . . . . . . . . . . . . Builder 5 | . . . . . 3 . . . . . . . . . . 2 . . . . . . . . . . . Hauler 10 | . 2 . . . 3 . . . . . . . . . . 2 1 . 2 . . . . . . . . Recycler 3 | . . . . . 2 1 . . . . . . . . . . . . . . . . . . . . . Carrier 2 | . . . . . . 1 . . . . . . . . . . . . 1 . . . . . . . . Operator 18 | . 2 . . . . 2 . . . . . . . . 9 2 . . 2 . . . . . . . 1 Watcher 19 | . 3 . . . 5 6 . . . . . 1 . . . . . . 3 . . . . . . 1 . Swarmer 27 | . . . . . 13 2 . . . . . . . . . . . . 7 . 2 . . . 3 . . Grunt 33 | . 11 2 . . 9 3 1 . . . 1 . 2 . . . . . 3 . . . . . 1 . . Brawler 1 | . . . . . . . . . . . 1 . . . . . . . . . . . . . . . . Duelist 3 | . . . . . . 1 2 . . . . . . . . . . . . . . . . . . . . Sentry 17 | . . . . . 7 2 . . . . . . 1 . . . . . 4 . . . . . 1 . 2 Hunter 4 | . . . . . . . . . . . . . . . . . . . 4 . . . . . . . . Programmer 16 | . . . . . . 3 1 . . . . . . . . . . . 12 . . . . . . . . Assembled 11 | . . 11 . . . . . . . . . . . . . . . . . . . . . . . . . Best Kill Streak 8 | . 3 8 . . 7 6 1 . . . 1 1 1 . 5 2 1 . 4 . 2 . . . 3 1 1 Combat Bots Only 8 | . 3 8 . . 7 3 1 . . . 1 . 1 . . . . . 4 . 2 . . . 3 . 1 Max Kills in Single Turn 4 | . 1 4 . . 2 1 1 . . . 1 1 1 . 1 3 1 . 1 . 1 . . . 1 1 1 Gunslinging . | . . . . . . . . . . . . . . . . . . . . . . . . . . . . Exploded 4 | . . 4 . . 2 . . . . . . . . . . . . . . . . . . . . . . Melee 1 | . . . . . . 1 1 . . . 1 . 1 . . . . . 1 . 1 . . . 1 . 1 Uniques/NPCs Destroyed . | . . . . . . . . . . . . . . . . . . . . . . . . . . . . Combat | -11 -10 -10 -10 -9 -8 -7 -6 -6 -6 -6 -5 -5 -5 -5 -5 -5 -4 -4 -4 -4 -4 -4 -3 -3 -3 -2 -1 -------- Run | Scr Mat Min Exi Min Mat Fac Fac Low Low Dat Pro Fac Ext Cet Arc Hub Fac Was Fac Upp Upp War Pro Res Arm Res Acc Damage Taken 6945 | . 432 854 . . 1354 396 268 . . . . 10 150 156 28 127 43 . 1721 . 333 . . 623 220 29 201 Core 1726 | . 53 115 . . 134 81 39 . . . . 10 29 105 . 96 . . 588 . 78 . . 288 81 29 . Absorbed by Shields 220 | . . . . . . 35 5 . . . . 8 82 27 . . . . . . . . . . 63 . . Core Remaining (%) 77 | 100 . . . 32 75 88 . . . . 95 . . . . 76 . . . . . . 42 . 71 98 100 Volleys Fired 201 | . 73 17 . . 105 . . . . . . . 2 . . 1 . . . . . . . . . . 3 Largest 2 | . 2 2 . . 2 . . . . . . . 1 . . 1 . . . . . . . . . . 1 Hottest 100 | . 100 40 . . 46 . . . . . . . . . . 60 . . . . . . . . . . . Shots Fired 347 | . 118 32 . . 191 . . . . . . . 2 . . 1 . . . . . . . . . . 3 Gun 315 | . 99 30 . . 185 . . . . . . . . . . 1 . . . . . . . . . . . Cannon . | . . . . . . . . . . . . . . . . . . . . . . . . . . . . Launcher 8 | . . 2 . . 6 . . . . . . . . . . . . . . . . . . . . . . Special 24 | . 19 . . . . . . . . . . . 2 . . . . . . . . . . . . . 3 Kinetic 308 | . 93 30 . . 185 . . . . . . . . . . . . . . . . . . . . . . Thermal 19 | . 19 . . . . . . . . . . . . . . . . . . . . . . . . . . Explosive 8 | . . 2 . . 6 . . . . . . . . . . . . . . . . . . . . . . Electromagnetic 7 | . 6 . . . . . . . . . . . . . . 1 . . . . . . . . . . . Robot Hit Streak 20 | . 11 12 . . 20 . . . . . . . 13 . . . . . . . . . . . . . 16 Robot Miss Streak 3 | . 2 2 . . 3 . . . . . . . . . . . . . . . . . . . . . . Penetration Max . | . . . . . . . . . . . . . . . . . . . . . . . . . . . . Secondary Targets 5 | . . 2 . . 3 . . . . . . . . . . . . . . . . . . . . . . Max Gunslinging Chain 1 | . . 1 . . 1 . . . . . . . . . . . . . . . . . . . . . . Shots Hit Robots 472 | . 70 25 . . 154 42 15 . . . 2 2 37 3 14 5 7 . 77 . 3 . . . 6 1 9 Core Hits 269 | . 35 33 . . 79 27 7 . . . 2 1 7 2 11 11 1 . 40 . 3 . . . 5 1 4 Critical Hits 10 | . 2 . . . . 1 . . . . 1 . . . . . . . 5 . . . . . . . 1 Critical Kills 5 | . . . . . . . . . . . 1 . . . . . . . 3 . . . . . . . 1 Critical Parts Destroyed 4 | . 1 . . . . 1 . . . . . . . . . . . . 2 . . . . . . . . Melee Attacks 840 | . . . . . 59 129 118 3 1 . 15 16 69 5 19 13 17 2 210 5 9 . 33 38 17 16 46 Impact . | . . . . . . . . . . . . . . . . . . . . . . . . . . . . Slashing 102 | . . . . . 59 13 3 . . . 2 2 . . . . . . 5 . . . 8 8 2 . . Piercing 703 | . . . . . . 116 115 3 1 . 13 14 43 5 19 11 14 2 201 5 9 . 25 30 15 16 46 Sneak Attacks 74 | . . . . . 3 9 1 . . . . 1 28 . 9 4 4 . 14 . 1 . . . . . . Combat Hostiles 14 | . . . . . . 3 1 . . . . 1 . . . . 2 . 6 . 1 . . . . . . Follow-up Attacks 16 | . . . . . . 8 7 . . . . . . . . . . . . . . . . . 1 . . Damage Inflicted 15531 | . 746 737 . . 2852 1837 495 . . . 65 133 411 106 941 806 209 . 5127 . 207 . . . 313 73 473 Guns 2834 | . 746 246 . . 1842 . . . . . . . . . . . . . . . . . . . . . . Cannons . | . . . . . . . . . . . . . . . . . . . . . . . . . . . . Explosions 1489 | . . 491 . . 429 . . . . . . . . . . 569 . . . . . . . . . . . Melee 11208 | . . . . . 581 1837 495 . . . 65 133 411 106 941 237 209 . 5127 . 207 . . . 313 73 473 Ramming . | . . . . . . . . . . . . . . . . . . . . . . . . . . . . Kinetic 2769 | . 681 246 . . 1842 . . . . . . . . . . . . . . . . . . . . . . Thermal 139 | . . 139 . . . . . . . . . . . . . . . . . . . . . . . . . Explosive 781 | . . 352 . . 429 . . . . . . . . . . . . . . . . . . . . . . Electromagnetic 634 | . 65 . . . . . . . . . . . . . . 569 . . . . . . . . . . . Impact . | . . . . . . . . . . . . . . . . . . . . . . . . . . . . Slashing 870 | . . . . . 581 58 . . . . . . . . . . . . 193 . . . . . 38 . . Piercing 10338 | . . . . . . 1779 495 . . . 65 133 411 106 941 237 209 . 4934 . 207 . . . 275 73 473 Highest Corruption 31 | . . . . . . 1 . . . . . . . . . 2 . 9 14 14 30 31 . . . . . Average Corruption 2 | . . . . . . 1 . . . . . . . . . 2 . 9 4 14 14 31 . . . . . Corruption Purged 16 | . . . . . . . . . . . . . . . . . . . 16 . . . . . . . . Effects 83 | . . . . . . 21 . . . . . . . . . . . 3 39 12 7 1 . . . . . Message Errors 24 | . . . . . . 13 . . . . . . . . . . . . 8 1 2 . . . . . . Matter Fused 12 | . . . . . . . . . . . . . . . . . . 1 9 1 1 . . . . . . Heat Flow Errors 6 | . . . . . . . . . . . . . . . . . . 1 4 1 . . . . . . . Energy Discharges 13 | . . . . . . 6 . . . . . . . . . . . . 6 1 . . . . . . . Data Loss (minor) 10 | . . . . . . 2 . . . . . . . . . . . . 6 2 . . . . . . . Data Loss (major) 1 | . . . . . . . . . . . . . . . . . . . 1 . . . . . . . . Misdirections 11 | . . . . . . . . . . . . . . . . . . . 1 6 3 1 . . . . . Targeting Errors 6 | . . . . . . . . . . . . . . . . . . 1 4 . 1 . . . . . . Overload Shots . | . . . . . . . . . . . . . . . . . . . . . . . . . . . . Overflow Damage 917 | . . 12 . . 98 99 21 . . . . . 28 . 105 101 . . 335 . . . . . 5 . 113 Projectiles . | . . . . . . . . . . . . . . . . . . . . . . . . . . . . Explosions 126 | . . 12 . . 13 . . . . . . . . . . 101 . . . . . . . . . . . Melee 791 | . . . . . 85 99 21 . . . . . 28 . 105 . . . 335 . . . . . 5 . 113 Knockbacks . | . . . . . . . . . . . . . . . . . . . . . . . . . . . . Impact . | . . . . . . . . . . . . . . . . . . . . . . . . . . . . Kinetic . | . . . . . . . . . . . . . . . . . . . . . . . . . . . . Secondary . | . . . . . . . . . . . . . . . . . . . . . . . . . . . . Self-Inflicted Damage 94 | . . . . . . . . . . . . . . . . 94 . . . . . . . . . . . Shots 1 | . . . . . . . . . . . . . . . . 1 . . . . . . . . . . . Rammed 1 | . . . . . . . . . . . . . . . . . . . . . 1 . . . . . . Targets Rammed 1 | . . . . . . . . . . . . . . . . . . . . . 1 . . . . . . Kicked . | . . . . . . . . . . . . . . . . . . . . . . . . . . . . Crushed . | . . . . . . . . . . . . . . . . . . . . . . . . . . . . Highest Temperature 229 | . 116 9 . . 18 . . . . . . . . . . 8 . 105 222 229 . . . 12 . . . Average Temperature 37 | . 33 6 . . 6 . . . . . . . . . . 7 . 59 95 125 . . . 12 . . . Received Heat Transfer 1363 | . 219 54 . . 495 99 57 . . . . 6 24 22 9 12 9 . 177 . 42 . . 99 30 . 9 Siege Activations . | . . . . . . . . . . . . . . . . . . . . . . . . . . . . Robots Corrupted 1 | . . . . . . . . . . . . . . . . 1 . . . . . . . . . . . Combat Hostiles . | . . . . . . . . . . . . . . . . . . . . . . . . . . . . Parts Fried 14 | . . . . . . . 2 . . . . . . . . 11 . . 1 . . . . . . . . Impact Corruptions . | . . . . . . . . . . . . . . . . . . . . . . . . . . . . Robots Melted . | . . . . . . . . . . . . . . . . . . . . . . . . . . . . Combat Hostiles . | . . . . . . . . . . . . . . . . . . . . . . . . . . . . Parts Melted 4 | . . . . . . . . . . . . . . . . . . . 4 . . . . . . . . Heat Transferred 250 | . . 250 . . . . . . . . . . . . . . . . . . . . . . . . . Parts Sabotaged . | . . . . . . . . . . . . . . . . . . . . . . . . . . . . Parts Stolen . | . . . . . . . . . . . . . . . . . . . . . . . . . . . . Parts Stripped . | . . . . . . . . . . . . . . . . . . . . . . . . . . . . Power Chain Reactions . | . . . . . . . . . . . . . . . . . . . . . . . . . . . . Missiles Intercepted . | . . . . . . . . . . . . . . . . . . . . . . . . . . . . Alert | -11 -10 -10 -10 -9 -8 -7 -6 -6 -6 -6 -5 -5 -5 -5 -5 -5 -4 -4 -4 -4 -4 -4 -3 -3 -3 -2 -1 ------- Run | Scr Mat Min Exi Min Mat Fac Fac Low Low Dat Pro Fac Ext Cet Arc Hub Fac Was Fac Upp Upp War Pro Res Arm Res Acc Peak Influence 1464 | . 129 65 . . 297 633 1038 . . . . 502 365 652 464 426 225 39 1464 . . . . 161 590 442 732 Average Influence 217 | . 35 37 . . 137 135 270 . . . . 88 99 437 406 207 120 33 365 . . . . 52 279 286 323 Maximum Alert Level 4 | . . . . . 1 2 3 . . . . 2 1 2 2 2 1 . 4 . . . . . 2 2 3 Low Security (%) 58 | 100 100 100 . 100 65 74 42 . . . . 88 84 26 . 60 59 100 39 . . . . 100 50 . 31 Level 1 24 | . . . . . 34 20 31 . . . . 10 15 4 31 35 40 . 25 . . . . . 24 91 48 Level 2 13 | . . . . . . 5 22 . . . . 1 . 68 68 4 . . 19 . . . . . 24 8 12 Level 3 2 | . . . . . . . 3 . . . . . . . . . . . 9 . . . . . . . 7 Level 4 . | . . . . . . . . . . . . . . . . . . . 5 . . . . . . . . Level 5 . | . . . . . . . . . . . . . . . . . . . . . . . . . . . . High Security . | . . . . . . . . . . . . . . . . . . . . . . . . . . . . Max Security . | . . . . . . . . . . . . . . . . . . . . . . . . . . . . Squads Dispatched 106 | . 4 . . . 2 15 30 . . . . 6 . . . 2 . . 38 . 1 . . 1 1 1 5 Investigation 12 | . 2 . . . 2 . 1 . . . . 1 . . . . . . 3 . . . . 1 . . 2 Extermination 61 | . . . . . . 13 25 . . . . 4 . . . . . . 18 . . . . . . . 1 Reinforcement 10 | . 2 . . . . 2 . . . . . . . . . 1 . . 3 . . . . . . 1 1 Assault 20 | . . . . . . . 4 . . . . 1 . . . 1 . . 12 . 1 . . . 1 . . Garrison 3 | . . . . . . . . . . . . . . . . . . . 2 . . . . . . . 1 Intercept . | . . . . . . . . . . . . . . . . . . . . . . . . . . . . Construction Impeded 2 | . . . . . . 1 . . . . . . . . . 1 . . . . . . . . . . . Haulers Reinforced 2 | . . . . . . . . . . . . . . . . . . . 2 . . . . . . . . Stealth | -11 -10 -10 -10 -9 -8 -7 -6 -6 -6 -6 -5 -5 -5 -5 -5 -5 -4 -4 -4 -4 -4 -4 -3 -3 -3 -2 -1 --------- Run | Scr Mat Min Exi Min Mat Fac Fac Low Low Dat Pro Fac Ext Cet Arc Hub Fac Was Fac Upp Upp War Pro Res Arm Res Acc Distress Signals 37 | . 1 . . . 1 2 1 . . . . . 3 2 . 2 . . 8 . . . . . 4 7 6 Communications Jammed . | . . . . . . . . . . . . . . . . . . . . . . . . . . . . Distress Signals . | . . . . . . . . . . . . . . . . . . . . . . . . . . . . Times Spotted 556 | . 32 23 . . 51 44 47 4 3 . 8 9 25 22 8 10 2 5 122 . 23 . . 47 30 14 27 Peak Tracking Total 20 | . 4 14 . . 8 6 6 4 3 . 4 2 5 6 3 6 1 5 9 . 12 . . 20 11 6 6 Tactical Retreats 59 | . 6 1 . . 2 3 5 . . . . 1 1 1 . 2 1 . 15 . 4 . . 6 3 2 6 Traps | -11 -10 -10 -10 -9 -8 -7 -6 -6 -6 -6 -5 -5 -5 -5 -5 -5 -4 -4 -4 -4 -4 -4 -3 -3 -3 -2 -1 ------- Run | Scr Mat Min Exi Min Mat Fac Fac Low Low Dat Pro Fac Ext Cet Arc Hub Fac Was Fac Upp Upp War Pro Res Arm Res Acc Traps Triggered 12 | . 2 . . . 1 2 . . . . . . . . . . 1 . 4 . . . . . . . 2 Indirectly . | . . . . . . . . . . . . . . . . . . . . . . . . . . . . Trap Hack Attempts 29 | . . . . . . . . . . . . . 23 . . . . . 6 . . . . . . . . Triggered . | . . . . . . . . . . . . . . . . . . . . . . . . . . . . Disarmed 22 | . . . . . . . 3 . . . . . 1 . . 6 . . 12 . . . . . . . . Reprogrammed 34 | . . . . . . . . . . . . 4 10 . . 4 6 . 2 . . . . 4 4 . . Reused 6 | . . . . . . . . . . . . 1 1 . . 1 . . 2 . . . . . 1 . . Traps Extracted . | . . . . . . . . . . . . . . . . . . . . . . . . . . . . Installed . | . . . . . . . . . . . . . . . . . . . . . . . . . . . . Triggered 15 | . . . . . . . . . . . . 1 1 . . 1 . . 2 . . 7 1 . 1 . 1 Machines | -11 -10 -10 -10 -9 -8 -7 -6 -6 -6 -6 -5 -5 -5 -5 -5 -5 -4 -4 -4 -4 -4 -4 -3 -3 -3 -2 -1 ---------- Run | Scr Mat Min Exi Min Mat Fac Fac Low Low Dat Pro Fac Ext Cet Arc Hub Fac Was Fac Upp Upp War Pro Res Arm Res Acc Machines Disabled 41 | . . 1 . . 1 9 . . . . . 1 4 1 1 2 . . 10 . . . . . 6 4 1 Max in Single Turn 2 | . . 1 . . 1 . . . . . . 1 1 . . 2 . . . . . . . . 1 1 1 Garrison Access 6 | . . . . . . 2 . . . . . 1 . . . 1 . . 1 . . . . . . 1 . Network Hub 1 | . . . . . . . . . . . . . . . . 1 . . . . . . . . . . . Machines Sabotaged . | . . . . . . . . . . . . . . . . . . . . . . . . . . . . Garrisons Compromised . | . . . . . . . . . . . . . . . . . . . . . . . . . . . . Overloaded Fab Kills . | . . . . . . . . . . . . . . . . . . . . . . . . . . . . Fab Network Shutdowns 2 | . . . . . . . . . . . . 1 . . . . . . . . . . . . . . 1 Hacking | -11 -10 -10 -10 -9 -8 -7 -6 -6 -6 -6 -5 -5 -5 -5 -5 -5 -4 -4 -4 -4 -4 -4 -3 -3 -3 -2 -1 --------- Run | Scr Mat Min Exi Min Mat Fac Fac Low Low Dat Pro Fac Ext Cet Arc Hub Fac Was Fac Upp Upp War Pro Res Arm Res Acc Machines Accessed 166 | . 10 . 2 . 15 22 18 . . 4 . 7 17 3 . 9 3 . 26 . . 8 . 3 6 2 11 Terminals 100 | . 7 . . . 10 11 11 . . . . 4 17 3 . 8 3 . 16 . . . . 2 3 . 5 Fabricators 20 | . . . . . . 5 5 . . . . 1 . . . . . . 4 . . . . . 3 . 2 Repair Stations 3 | . 1 . . . 1 . . . . . . . . . . . . . 1 . . . . . . . . Recycling Units 11 | . 2 . . . 2 4 1 . . . . 1 . . . . . . 1 . . . . . . . . Scanalyzers 2 | . . . . . 1 . . . . . . . . . . . . . . . . . . . . . 1 Garrison Access 16 | . . . . . 1 2 1 . . . . 1 . . . 1 . . 4 . . . . 1 . 2 3 Total Hacks 877 | . 25 . 5 . 50 100 116 . . 25 . 47 128 13 . 54 14 . 158 . . 9 . 12 35 5 81 Successful 701 | . 13 . 5 . 35 83 95 . . 25 . 38 115 13 . 46 14 . 129 . . 9 . 9 24 3 45 Failed 174 | . 12 . . . 14 17 21 . . . . 8 13 . . 8 . . 29 . . . . 3 11 2 36 Catastrophic 19 | . 1 . . . . . 3 . . . . . . . . . . . 7 . . . . 1 . . 7 Database Lockouts 2 | . . . . . 1 . . . . . . 1 . . . . . . . . . . . . . . . Manual 541 | . 19 . 1 . 35 50 43 . . . . 37 109 14 1 38 9 . 90 . . 1 . 9 14 5 66 Terminals 592 | . 19 . . . 39 47 57 . . . . 38 128 13 . 52 14 . 108 . . . . 10 13 . 54 Fabricators 164 | . . . . . . 39 53 . . . . 6 . . . . . . 26 . . . . . 22 . 18 Repair Stations 13 | . 2 . . . 2 . . . . . . . . . . . . . 9 . . . . . . . . Recycling Units 15 | . 4 . . . 2 6 1 . . . . 1 . . . . . . 1 . . . . . . . . Scanalyzers 7 | . . . . . 5 . . . . . . . . . . . . . . . . . . . . . 2 Garrison Access 47 | . . . . . 2 8 5 . . . . 2 . . . 2 . . 14 . . . . 2 . 5 7 Terminal Hacks 326 | . 3 . 5 . 16 28 29 . . 25 . 25 69 3 . 21 7 . 57 . . 9 . 5 6 . 18 Record 39 | . . . 4 . 1 1 1 . . 11 . . 4 . . 2 . . 5 . . 7 . . . . 3 Part Schematic 15 | . . . . . 1 . 1 . . 7 . 1 4 . . 1 . . . . . . . . . . . Robot Schematic 21 | . . . . . 1 5 3 . . 4 . 1 2 . . . . . 4 . . . . 1 . . . Robot Analysis 19 | . . . . . . . . . . . . 6 5 . . . 1 . 3 . . . . . . . 4 Prototype ID Bank 34 | . . . . . . . . . . 3 . 1 30 . . . . . . . . . . . . . . Open Door 5 | . . . . . . . . . . . . . . 1 . . . . . . . 2 . . 1 . 1 Level Access Points 2 | . . . . . . . . . . . . . . . . 1 . . . . . . . . . . 1 Branch Access Points 9 | . . . . . 1 1 1 . . . . 1 1 . . 1 1 . 1 . . . . 1 . . . Emergency Access Points 5 | . . . . . . 1 . . . . . . . . . 1 . . 2 . . . . 1 . . . Machine Index 4 | . . . . . . . . . . . . . 1 . . 1 1 . 1 . . . . . . . . Terminal Index 7 | . 1 . . . 1 1 1 . . . . 1 . . . . . . . . . . . . 1 . 1 Fabricator Index 5 | . . . . . . 1 1 . . . . 1 . . . . . . . . . . . . 1 . 1 Garrison Index 1 | . . . . . . . . . . . . 1 . . . . . . . . . . . . . . . Alert Level 23 | . . . . . 2 2 3 . . . . 1 5 . . 1 1 . 6 . . . . . . . 2 Unreport Threat 46 | . . . . . 4 6 10 . . . . 5 6 . . . 1 . 11 . . . . . 1 . 2 Locate Traps 6 | . . . . . . 2 1 . . . . . . . . 1 1 . 1 . . . . . . . . Disarm Traps 4 | . . . . . . . 1 . . . . . . . . 1 . . 2 . . . . . . . . Reprogram Traps 6 | . . . . . . . . . . . . 1 1 . . 1 1 . . . . . . 1 1 . . Dispatch Records 3 | . . . . . . . . . . . . . 1 1 . 1 . . . . . . . . . . . Maintenance Status 4 | . . . . . . 1 . . . . . . . . . 1 . . 1 . . . . . . . 1 Security Status 2 | . . . . . . . . . . . . 1 . 1 . . . . . . . . . . . . . Patrol Status 7 | . . . . . 1 . . . . . . 1 3 . . 1 . . . . . . . . . . 1 Recall Investigation 3 | . . . . . 1 . . . . . . . . . . . . . 2 . . . . . . . . Recall Extermination 14 | . . . . . . 4 1 . . . . 1 . . . . . . 8 . . . . . . . . Recall Reinforcements 2 | . . . . . . . . . . . . . . . . . . . 2 . . . . . . . . Recall Assault 10 | . . . . . . . 3 . . . . 1 . . . 1 . . 5 . . . . . . . . Hauler Manifests 2 | . . . . . 1 . . . . . . . . . . 1 . . . . . . . . . . . Registered Components 3 | . . . . . 1 . . . . . . 1 1 . . . . . . . . . . . . . . Registered Prototypes 1 | . . . . . . . . . . . . . 1 . . . . . . . . . . . . . . Zone Layout 23 | . 2 . . . 1 3 2 . . . . . 4 . . 5 . . 3 . . . . 1 1 . 1 EX-Prototype ID Bank 1 | . . . 1 . . . . . . . . . . . . . . . . . . . . . . . . Fabricator Hacks 115 | . . . . . . 32 43 . . . . 4 . . . . . . 21 . . . . . 10 . 5 Network Status 4 | . . . . . . 1 1 . . . . . . . . . . . 1 . . . . . 1 . . Load Schematic 31 | . . . . . . 6 11 . . . . 2 . . . . . . 5 . . . . . 5 . 2 Build 80 | . . . . . . 25 31 . . . . 2 . . . . . . 15 . . . . . 4 . 3 Repair Station Hacks 13 | . 2 . . . 2 . . . . . . . . . . . . . 9 . . . . . . . . Scan Component 6 | . 1 . . . 1 . . . . . . . . . . . . . 4 . . . . . . . . Repair 6 | . 1 . . . 1 . . . . . . . . . . . . . 4 . . . . . . . . Refit 1 | . . . . . . . . . . . . . . . . . . . 1 . . . . . . . . Recycling Unit Hacks 2 | . . . . . . 2 . . . . . . . . . . . . . . . . . . . . . Report Inventory 1 | . . . . . . 1 . . . . . . . . . . . . . . . . . . . . . Retrieve Components 1 | . . . . . . 1 . . . . . . . . . . . . . . . . . . . . . Scanalyzer 7 | . . . . . 5 . . . . . . . . . . . . . . . . . . . . . 2 Insert Component 5 | . . . . . 3 . . . . . . . . . . . . . . . . . . . . . 2 Analyze 2 | . . . . . 2 . . . . . . . . . . . . . . . . . . . . . . Garrison Access Hacks 2 | . . . . . . 2 . . . . . . . . . . . . . . . . . . . . . Seal Access 2 | . . . . . . 2 . . . . . . . . . . . . . . . . . . . . . Unauthorized Hacks 236 | . 8 . . . 12 19 23 . . . . 9 46 10 . 25 7 . 42 . . . . 4 8 3 20 Terminals 162 | . 6 . . . 8 9 11 . . . . 5 46 10 . 23 7 . 22 . . . . 3 4 . 8 Track 19 | . 2 . . . . . . . . . . . 7 3 . 6 . . 1 . . . . . . . . Assimilate 26 | . 1 . . . 3 2 2 . . . . 1 4 1 . 3 2 . 6 . . . . 1 . . . Botnet 69 | . 2 . . . 4 6 8 . . . . 3 14 3 . 6 3 . 11 . . . . 2 3 . 4 Detonate 4 | . . . . . . . . . . . . . 2 . . . . . 1 . . . . . . . 1 Disrupt 34 | . . . . . . . . . . . . . 17 3 . 7 2 . 2 . . . . . 1 . 2 Operators 10 | . 1 . . . 1 1 1 . . . . 1 2 . . 1 . . 1 . . . . . . . 1 Fabricators 29 | . . . . . . 5 8 . . . . 1 . . . . . . 5 . . . . . 4 . 6 Report 3 | . . . . . . . 1 . . . . . . . . . . . . . . . . . 1 . 1 Prioritize 5 | . . . . . . . 2 . . . . . . . . . . . 1 . . . . . . . 2 Siphon 20 | . . . . . . 5 5 . . . . 1 . . . . . . 4 . . . . . 3 . 2 Haulers 1 | . . . . . . . . . . . . . . . . . . . . . . . . . . . 1 Repair Stations . | . . . . . . . . . . . . . . . . . . . . . . . . . . . . Recycling Units 11 | . 2 . . . 2 4 1 . . . . 1 . . . . . . 1 . . . . . . . . Mask 11 | . 2 . . . 2 4 1 . . . . 1 . . . . . . 1 . . . . . . . . Scanalyzers . | . . . . . . . . . . . . . . . . . . . . . . . . . . . . Garrison Access 34 | . . . . . 2 1 3 . . . . 2 . . . 2 . . 14 . . . . 1 . 3 6 Broadcast 4 | . . . . . . . 1 . . . . 1 . . . 1 . . 1 . . . . . . . . Reprogram 25 | . . . . . 2 1 2 . . . . 1 . . . 1 . . 10 . . . . 1 . 3 4 Intercept 5 | . . . . . . . . . . . . . . . . . . . 3 . . . . . . . 2 Data Cores Recovered 4 | . . . . . . . . . . . . . 2 . . . . . . . . . . . . . 2 Used . | . . . . . . . . . . . . . . . . . . . . . . . . . . . . Hacking Detections 108 | . 7 . . . 12 17 14 . . . . 4 14 2 . 3 2 . 15 . . . . 3 5 . 10 Full Trace Events 4 | . 1 . . . . . 1 . . . . . . . . . . . 2 . . . . . . . . Feedback Events 2 | . . . . . . . . . . . . . . . . . . . 2 . . . . . . . . Hackware Fried 2 | . . . . . . . . . . . . . . . . . . . 2 . . . . . . . . Feedback Blocked . | . . . . . . . . . . . . . . . . . . . . . . . . . . . . Robot Schematics Acquired 21 | . . . . . 1 5 3 . . 4 . 1 2 . . . . . 4 . . . . 1 . . . Robots Built 80 | . . . . . . 19 32 . . . . 3 . . . . . . 14 . . . . . 8 . 4 Matter 9631 | . . . . . . 1972 3337 . . . . 427 . . . . . . 1866 . . . . . 1261 . 768 Time 5197 | . . . . . . 1178 2204 . . . . 100 . . . . . . 1232 . . . . . 313 . 170 Total Robot Build Rating 418 | . . . . . . 60 150 . . . . 17 . . . . . . 100 . . . . . 59 . 32 Part Schematics Acquired 17 | . . . . . 3 . 1 . . 7 . 1 4 . . 1 . . . . . . . . . . . Parts Built 3 | . . . . . . 2 1 . . . . . . . . . . . . . . . . . . . . Matter 445 | . . . . . . 255 190 . . . . . . . . . . . . . . . . . . . . Time 119 | . . . . . . 72 47 . . . . . . . . . . . . . . . . . . . . Total Part Build Rating 11 | . . . . . . 6 5 . . . . . . . . . . . . . . . . . . . . Parts Repaired 6 | . 1 . . . 1 . . . . . . . . . . . . . 4 . . . . . . . . Time 264 | . 26 . . . 26 . . . . . . . . . . . . . 212 . . . . . . . . Parts Recycled . | . . . . . . . . . . . . . . . . . . . . . . . . . . . . Recycled Matter . | . . . . . . . . . . . . . . . . . . . . . . . . . . . . Retrieved Matter . | . . . . . . . . . . . . . . . . . . . . . . . . . . . . Retrieved Components 6 | . . . . . . 6 . . . . . . . . . . . . . . . . . . . . . Parts Scanalyzed 2 | . . . . . 2 . . . . . . . . . . . . . . . . . . . . . . Part Schematics Acquired 2 | . . . . . 2 . . . . . . . . . . . . . . . . . . . . . . Parts Damaged . | . . . . . . . . . . . . . . . . . . . . . . . . . . . . Bothacking | -11 -10 -10 -10 -9 -8 -7 -6 -6 -6 -6 -5 -5 -5 -5 -5 -5 -4 -4 -4 -4 -4 -4 -3 -3 -3 -2 -1 ------------ Run | Scr Mat Min Exi Min Mat Fac Fac Low Low Dat Pro Fac Ext Cet Arc Hub Fac Was Fac Upp Upp War Pro Res Arm Res Acc Used RIF Installer . | . . . . . . . . . . . . . . . . . . . . . . . . . . . . Robots Hacked 7 | . . . . . . . . . . . . . . . . 2 1 . 4 . . . . . . . . Non-combat 7 | . . . . . . . . . . . . . . . . 2 1 . 4 . . . . . . . . Combat . | . . . . . . . . . . . . . . . . . . . . . . . . . . . . Robot Hacks Applied 7 | . . . . . . . . . . . . . . . . 2 1 . 4 . . . . . . . . parse_system 1 | . . . . . . . . . . . . . . . . . . . 1 . . . . . . . . no_distress 6 | . . . . . . . . . . . . . . . . 2 1 . 3 . . . . . . . . Relay Couplers Released 14 | . . . . . . . . . . . . 2 . . . 1 . . 10 . . . . . . 1 . Machine Destruction 7 | . . . . . . . . . . . . 2 . . . 1 . . 3 . . . . . . 1 . Programmers 7 | . . . . . . . . . . . . . . . . . . . 7 . . . . . . . . Robots Rewired 26 | . . . . . . . . . . . . . 18 . . . 2 . . . . . . . 6 . . Allies Hacked 6 | . . . . . . 1 . . . . . . . . . . 1 . 4 . . . . . . . . Hacks Repelled 5 | . . . . . . . 1 . . . . 1 . . . . 1 . 2 . . . . . . . . Allies | -11 -10 -10 -10 -9 -8 -7 -6 -6 -6 -6 -5 -5 -5 -5 -5 -5 -4 -4 -4 -4 -4 -4 -3 -3 -3 -2 -1 -------- Run | Scr Mat Min Exi Min Mat Fac Fac Low Low Dat Pro Fac Ext Cet Arc Hub Fac Was Fac Upp Upp War Pro Res Arm Res Acc Total Allies 179 | . 1 . . . 4 22 36 . . . 1 4 34 5 . 3 2 . 40 . . . . 1 14 2 10 Largest Group 42 | . 1 . . . 2 15 22 16 15 14 15 16 42 19 9 7 2 . 7 3 2 . . 1 9 . 3 Highest-Rated Group 1595 | . 10 . . . 37 331 830 524 483 462 556 628 1595 1190 698 438 96 . 351 228 180 . . 44 542 . 508 Highest-Rated Ally 222 | . 10 . . . 27 38 54 41 41 41 94 94 156 156 156 94 49 . 91 90 90 . . 44 90 . 222 Total Orders 486 | . 4 . . . 24 92 219 1 . . . 50 34 1 . 3 4 . 48 . . . . 2 2 1 1 STAY 284 | . 2 . . . 12 61 129 . . . . 29 15 . . 2 2 . 30 . . . . 1 1 . . ROAM 1 | . . . . . . . 1 . . . . . . . . . . . . . . . . . . . . FOLLOW 176 | . 2 . . . 12 30 78 . . . . 15 14 1 . 1 2 . 18 . . . . 1 1 . 1 AID 24 | . . . . . . 1 11 1 . . . 6 5 . . . . . . . . . . . . . . EXPLORE 1 | . . . . . . . . . . . . . . . . . . . . . . . . . . 1 . Ally Attacks 1208 | . . . . . . 148 237 35 16 . 45 43 133 106 23 15 5 . 280 2 13 . . . 64 . 43 Total Damage 43949 | . . . . . . 4484 8892 1243 457 . 1776 1706 4754 4054 791 567 114 . 9944 96 486 . . . 3010 . 1575 Kills 291 | . . . . . . 43 54 12 6 . 8 8 27 27 4 3 . . 66 1 7 . . . 16 . 9 Allies Corrupted 1 | . . . . . . . . . . . . . . . . . . . 1 . . . . . . . . Allies Melted . | . . . . . . . . . . . . . . . . . . . . . . . . . . . . Field Lobotomies 5 | . . . . . . . . . . . . . 2 . . . . . . . . . . . . . 3 Intel | -11 -10 -10 -10 -9 -8 -7 -6 -6 -6 -6 -5 -5 -5 -5 -5 -5 -4 -4 -4 -4 -4 -4 -3 -3 -3 -2 -1 ------- Run | Scr Mat Min Exi Min Mat Fac Fac Low Low Dat Pro Fac Ext Cet Arc Hub Fac Was Fac Upp Upp War Pro Res Arm Res Acc Robot Analysis Total 19 | . . . . . . . . . . . . 6 5 . . . 1 . 3 . . . . . . . 4 Derelict Logs Recovered 5 | . . . . . . . . 1 1 . 1 . . . . . . . . 1 1 . . . . . . Drone Launches 3 | . . . . . . . . . . . . . . . . . . . . . . . . . . 3 . Drone Recoveries . | . . . . . . . . . . . . . . . . . . . . . . . . . . . . Exploration | -11 -10 -10 -10 -9 -8 -7 -6 -6 -6 -6 -5 -5 -5 -5 -5 -5 -4 -4 -4 -4 -4 -4 -3 -3 -3 -2 -1 ------------- Run | Scr Mat Min Exi Min Mat Fac Fac Low Low Dat Pro Fac Ext Cet Arc Hub Fac Was Fac Upp Upp War Pro Res Arm Res Acc Turns Passed 54267 | 113 2994 525 911 31 3696 12624 15271 526 330 40 444 1977 1157 525 161 297 287 47 9495 165 165 351 184 349 520 476 606 Spaces Moved 45572 | 64 2375 288 521 18 1913 8419 9329 482 292 80 330 1801 1362 996 256 570 531 106 9997 335 347 758 301 575 1013 1114 1399 Core 9 | 1 1 . . . . . . . . . . . . . . . . . 7 . . . . . . . . Treads 3538 | 63 1258 288 521 18 1390 . . . . . . . . . . . . . . . . . . . . . . Legs . | . . . . . . . . . . . . . . . . . . . . . . . . . . . . Wheels . | . . . . . . . . . . . . . . . . . . . . . . . . . . . . Hover . | . . . . . . . . . . . . . . . . . . . . . . . . . . . . Flight 42025 | . 1116 . . . 523 8419 9329 482 292 80 330 1801 1362 996 256 570 531 106 9990 335 347 758 301 575 1013 1114 1399 Fastest Speed 27 | 50 37 160 160 180 29 29 29 30 30 30 30 30 30 32 32 32 32 37 37 37 37 32 32 32 32 32 27 Average Speed 42 | 158 102 160 170 180 137 29 29 30 30 30 30 30 30 32 32 32 35 37 37 37 37 32 32 32 35 32 27 Slowest Speed 250 | 160 160 160 180 180 200 102 30 30 30 30 30 30 32 32 32 32 40 37 250 37 37 32 32 32 37 37 32 Overloaded Moves . | . . . . . . . . . . . . . . . . . . . . . . . . . . . . Propulsion Burnouts . | . . . . . . . . . . . . . . . . . . . . . . . . . . . . Robots Hopped 273 | . 2 . . . 3 111 62 . . . . 4 6 10 . 2 2 2 23 1 . 2 . 2 4 10 27 Cave-ins Triggered 1 | . . . . . . . . . . . . . . . . . . . . . 1 . . . . . . Exploration Rate (%) 56 | 5 98 67 89 9 98 61 43 63 45 69 49 15 86 88 98 50 11 80 76 50 56 93 40 24 36 43 31 Regions Visited 27 Branch Regions 16 Pre-discovered Areas 3 | . . . 1 . . . . . . 1 1 . . . . . . . . . . . . . . . . Known Exits Taken 7 | . . . . . . . 1 . . . . 1 1 . . 1 . . 1 . . . . 1 . 1 . Unknown Exits Taken 18 | 1 1 1 1 1 1 1 . 1 1 1 1 . . 1 1 . . . . 1 1 1 1 . 1 . . Scrap Searched 6 | . . 1 . . . . . 2 1 . . . . . . . . . . 1 1 . . . . . . Spaces Dug 459 | . 19 . . . 56 63 57 3 1 . 8 10 16 2 1 6 6 2 105 5 4 . 25 30 3 11 26 Terrain Destroyed 668 | . 19 6 . . 85 63 57 3 1 . 8 10 16 2 1 180 6 2 105 5 4 . 25 30 3 11 26 Melee 431 | . . . . . 47 63 57 3 1 . 8 10 16 2 1 6 6 2 105 5 4 . 25 30 3 11 26 Projectile 19 | . 19 . . . . . . . . . . . . . . . . . . . . . . . . . . AOE 218 | . . 6 . . 38 . . . . . . . . . . 174 . . . . . . . . . . . Actions | -11 -10 -10 -10 -9 -8 -7 -6 -6 -6 -6 -5 -5 -5 -5 -5 -5 -4 -4 -4 -4 -4 -4 -3 -3 -3 -2 -1 --------- Run | Scr Mat Min Exi Min Mat Fac Fac Low Low Dat Pro Fac Ext Cet Arc Hub Fac Was Fac Upp Upp War Pro Res Arm Res Acc Total 78653 | 73 2800 322 553 17 2693 18328 21711 858 532 95 654 3212 2016 1184 303 664 605 108 15438 366 370 862 350 694 1157 1188 1500 Wait 31552 | . 234 8 . . 491 9845 12182 374 240 16 312 1389 550 193 18 76 44 1 5184 27 13 78 25 89 95 43 25 Move 45036 | 63 2370 287 520 17 1906 8205 9214 481 291 79 329 1792 1349 980 255 565 527 102 9952 332 346 754 300 570 1004 1097 1349 Hop 236 | . 2 . . . 3 102 52 . . . . 4 6 5 . 2 2 1 21 1 . 1 . 2 4 6 22 Pick Up 207 | 4 28 3 18 . 28 9 81 . . . . 4 2 . 3 3 4 . 10 . . 5 . . . 4 1 Fast Attach 119 | 6 23 . 1 . 13 10 4 . . . . 1 . . 1 . 2 . 25 . . 12 . 2 5 8 6 Attach 59 | . 6 4 1 . 13 4 3 . . . . 3 2 1 . . 3 . 8 1 1 3 . 1 . 2 3 Detach 14 | . 4 . . . 2 2 . . . . . . . . . . . . 3 . . 2 . . 1 . . Swap 80 | . 16 2 . . 30 3 1 . . . . 1 4 . 5 2 1 1 9 . . . . . . 2 3 Drop 243 | . 44 1 13 . 44 13 80 . . . . 4 1 . 2 2 5 1 10 . . 7 . . 1 9 6 Fire 201 | . 73 17 . . 105 . . . . . . . 2 . . 1 . . . . . . . . . . 3 Melee 768 | . . . . . 58 104 94 3 1 . 13 14 69 5 19 13 17 2 210 5 9 . 25 30 15 16 46 Ram . | . . . . . . . . . . . . . . . . . . . . . . . . . . . . Kick . | . . . . . . . . . . . . . . . . . . . . . . . . . . . . Crush . | . . . . . . . . . . . . . . . . . . . . . . . . . . . . Escape Stasis 76 | . . . . . . 31 . . . . . . 8 . . . . . . . 1 . . . . . 36 Rewire 32 | . . . . . . . . . . . . . . . . . . . . . . . . . 32 . . Trap 29 | . . . . . . . . . . . . . 23 . . . . . 6 . . . . . . . . Miscellaneous 1 | . . . . . . . . . . . . . . . . . . . . . . . . . . 1 . Route ------- -11/Scrapyard -10/Materials (discovered 4 exits: [*Mat x3] / [*Min]) -10/Mines -10/Exiles -9/Mines -8/Materials (discovered 4 exits: *Fac x3 / *Sto) -7/Factory (discovered 4 exits: *Fac x2 / *Low x2) -6/Factory (discovered 4 exits: *Fac x2 / *Low x2) -6/Lower Caves -6/Lower Caves -6/Data Miner -5/Proximity Caves -5/Factory (discovered 6 exits: *Fac x2 / Upp x2 / *Ext x2) -5/Extension (discovered 2 exits: *Fac / *Cet) -5/Cetus (discovered 3 exits: *Fac x2 / *Arc) -5/Archives (discovered 3 exits: *Fac / *Hub x2) -5/Hub_04(d) (discovered 4 exits: *Fac x4) -4/Factory (discovered 2 exits: *Upp x2) -4/Waste -4/Factory (discovered 4 exits: *Res x2 / *Upp x2) -4/Upper Caves -4/Upper Caves -4/Warlord -3/Proximity Caves -3/Research (discovered 3 exits: *Arm / Tes x2) -3/Armory -2/Research (discovered 2 exits: *Acc / *Qua) -1/Access To Epsilon Eridani History --------- Turn | Location | Event 27 | -11/Scrapyard | Discovered new exit (range 15) 114 | -11/Scrapyard | Entered Materials 305 | -10/Materials | Build established: Mutant 383 | -10/Materials | Discovered new exit (range 11) 571 | -10/Materials | Discovered new exit (range 9) 1424 | -10/Materials | Discovered new exit (range 16) 1883 | -10/Materials | Discovered new exit (range 3) 3073 | -10/Materials | Repaired Ion Engine 3108 | -10/Materials | Entered Mines 3108 | -10/Mines | Accompanied by 1 ally 3492 | -10/Mines | Assembled infested the area 3517 | -10/Mines | Core integrity fell below 50% 3532 | -10/Mines | Destroyed 8 combat bots 3557 | -10/Mines | Lost 4 parts (1p2n1w) 3625 | -10/Mines | Deemed a non-threat by the Exiles lab entrance 3627 | -10/Mines | Discovered new exit (range 5) 3633 | -10/Mines | Entered Exiles 3672 | -10/Exiles | Met 8R-AWN 3699 | -10/Exiles | Met EX-HEX 3744 | -10/Exiles | Met EX-BIN 3771 | -10/Exiles | Met EX-DEC 3782 | -10/Exiles | Learned location of Zion (-7) 3846 | -10/Exiles | Visited The Gauntlet 4326 | -10/Exiles | Aligned with FarCom system 4327 | -10/Exiles | Given EX-Vault access code 4346 | -10/Exiles | Build established: Hauler-Mutant 4369 | -10/Exiles | Opened EX-Vault 4378 | -10/Exiles | Found Field Lobotomy Kit 4418 | -10/Exiles | Warned to stay clear of 0b10 Research branches 4530 | -10/Exiles | Discovered new exit (range 10) 4544 | -10/Exiles | Left Exiles lab with Field Lobotomy Kit 4544 | -10/Exiles | Entered Mines 4559 | -9/Mines | Discovered new exit (range 8) 4575 | -9/Mines | Entered Materials 4575 | -8/Materials | Evolved 4 slots: Propulsion x1, Utility x3 5041 | -8/Materials | Discovered new exit (range 13) 5995 | -8/Materials | Destroyed 7 combat bots 6506 | -8/Materials | Repaired Assault Rifle 6719 | -8/Materials | Identified exit to Storage 6790 | -8/Materials | Central database locked down 6873 | -8/Materials | Discovered new exit (range 15) 7558 | -8/Materials | Discovered new exit (range 3) 8211 | -8/Materials | Build established: Hacker-Sprinter 8271 | -8/Materials | Entered Factory 8271 | -7/Factory | Evolved 2 slots: Utility x2 8722 | -7/Factory | Fabricated System Shield? 8743 | -7/Factory | Identified exit to Lower Caves 9019 | -7/Factory | Build established: Wizard-Sprinter 9248 | -7/Factory | Fabricated P-60 Hacker (x2) 9266 | -7/Factory | Discovered new exit (range 5) 10226 | -7/Factory | Fabricated System Shield? 10804 | -7/Factory | Fabricated H-55 Commando (x2) 12808 | -7/Factory | Fabricated H-55 Commando? 13300 | -7/Factory | Fabricated H-55 Commando? 14798 | -7/Factory | Fabricated H-55 Commando? 15310 | -7/Factory | Fabricated H-55 Commando? 15801 | -7/Factory | Fabricated H-55 Commando? 16749 | -7/Factory | Fabricated I-36 Angel (x1) 17041 | -7/Factory | Build established: Commander-Sprinter 18297 | -7/Factory | Fabricated H-55 Commando? 19051 | -7/Factory | Discovered new exit (range 3) 19184 | -7/Factory | Build established: Wizard-Sprinter 20297 | -7/Factory | Fabricated M-28 Smith? 20800 | -7/Factory | Fabricated M-28 Smith? 20895 | -7/Factory | Entered another Factory area 20895 | -6/Factory | Evolved 2 slots: Utility x2 21435 | -6/Factory | Fabricated L-41 Fighter? 21977 | -6/Factory | Fabricated L-41 Fighter? 22440 | -6/Factory | Fabricated L-41 Fighter? 22853 | -6/Factory | Fabricated Imp. System Shield (x1) 23376 | -6/Factory | Fabricated M-28 Smith (x1) 23940 | -6/Factory | Fabricated I-36 Angel? 25457 | -6/Factory | Fabricated H-66 Slayer? 26962 | -6/Factory | Fabricated H-66 Slayer? 28457 | -6/Factory | Fabricated H-66 Slayer? 29972 | -6/Factory | Fabricated H-66 Slayer? 30258 | -6/Factory | Build established: Commander-Sprinter 30473 | -6/Factory | Fabricated P-70 Sage? 31974 | -6/Factory | Fabricated P-70 Sage? 32445 | -6/Factory | First assault squad dispatched 33055 | -6/Factory | Discovered new exit (range 11) 33178 | -6/Factory | Identified exit to Lower Caves 33474 | -6/Factory | Fabricated X-72 Disruptor (x2) 34473 | -6/Factory | Fabricated X-72 Disruptor? 34526 | -6/Factory | Spotted B-75 Beast 34528 | -6/Factory | Allies destroyed B-75 Beast 34934 | -6/Factory | Fabricated O-24 Administrator? 35336 | -6/Factory | Discovered new exit (range 15) 35713 | -6/Factory | Build established: Wizard-Sprinter 35959 | -6/Factory | Fabricated H-55 Commando? 35994 | -6/Factory | Fabricated H-66 Slayer? 36166 | -6/Factory | Entered Lower Caves 36166 | -6/Lower Caves | Accompanied by 16 allies 36291 | -6/Lower Caves | Learned location of 1 exit from Factory 36669 | -6/Lower Caves | Discovered new exit (range 4) 36692 | -6/Lower Caves | Entered another Lower Caves area 36692 | -6/Lower Caves | Accompanied by 15 allies 36751 | -6/Lower Caves | Learned Factory emergency access door positions 36953 | -6/Lower Caves | Discovered new exit (range 14) 37022 | -6/Lower Caves | Entered Data Miner 37022 | -6/Data Miner | Accompanied by 14 allies 37022 | -6/Data Miner | Discovered new exit (range 6) 37028 | -6/Data Miner | Met Data Miner 37035 | -6/Data Miner | Learned location of Section 7 (-2) 37035 | -6/Data Miner | Acquired the access code to Warlord's prototype stash 37040 | -6/Data Miner | Received God Mode back door access code from Data Miner 37062 | -6/Data Miner | Entered Proximity Caves 37062 | -5/Proximity Caves | Accompanied by 14 allies 37216 | -5/Proximity Caves | Escorted by Enhanced Grunt 37310 | -5/Proximity Caves | Learned location of Warlord (-4) 37429 | -5/Proximity Caves | Discovered new exit (range 5) 37506 | -5/Proximity Caves | Entered Factory 37506 | -5/Factory | Accompanied by 13 allies 37506 | -5/Factory | Evolved 2 slots: Utility x2 37507 | -5/Factory | Identified exit to Factory 37537 | -5/Factory | Identified exit to Upper Caves 37537 | -5/Factory | Identified exit to Extension 38475 | -5/Factory | Fabricated M-28 Smith? 38560 | -5/Factory | P-70 Sage assimilated allied Slayer 5f 38996 | -5/Factory | Fabricated H-77 Assassin? 39008 | -5/Factory | Local fabrication network quarantined 39224 | -5/Factory | Spotted B-75 Beast 39232 | -5/Factory | Discovered exit to Factory (range 13) 39249 | -5/Factory | Allies destroyed B-75 Beast 39478 | -5/Factory | Central database locked down 39483 | -5/Factory | Entered Extension 39483 | -5/Extension | Accompanied by 15 allies 39528 | -5/Extension | Rescued a captive Derelict 39529 | -5/Extension | Rescued a captive Derelict 39549 | -5/Extension | Identified exit to Cetus 39757 | -5/Extension | Rescued a captive Derelict 39794 | -5/Extension | Rescued a captive Derelict 39797 | -5/Extension | Spotted B-75 Beast 39799 | -5/Extension | Spotted B-75 Beast 39799 | -5/Extension | Assimilated B-75 Beast with FLK Orb 39802 | -5/Extension | Assimilated B-75 Beast with FLK Orb 39875 | -5/Extension | Rescued A7 39936 | -5/Extension | Rescued a captive Derelict 39936 | -5/Extension | Rescued a captive Derelict 39994 | -5/Extension | Rescued a captive Derelict 39994 | -5/Extension | Rescued a captive Derelict 40102 | -5/Extension | Build established: Commander-Sprinter 40125 | -5/Extension | Rescued a captive Derelict 40126 | -5/Extension | Rescued a captive Derelict 40141 | -5/Extension | Rescued a captive Derelict 40225 | -5/Extension | Rescued a captive Derelict 40230 | -5/Extension | Rescued a captive Derelict 40328 | -5/Extension | Discovered exit to Factory (range 10) 40640 | -5/Extension | Entered Cetus 40640 | -5/Cetus | Accompanied by 16 allies 40645 | -5/Cetus | Acquired a Cetus Manufacturing Module code from A7 40646 | -5/Cetus | Spotted Cetus Guard 40646 | -5/Cetus | Spotted Cetus Guard 40658 | -5/Cetus | Spotted Cetus Guard 40658 | -5/Cetus | Spotted Cetus Guard 40660 | -5/Cetus | Allies destroyed Cetus Guard 40662 | -5/Cetus | Allies destroyed Cetus Guard 40664 | -5/Cetus | Allies destroyed Cetus Guard 40665 | -5/Cetus | Allies destroyed Cetus Guard 40675 | -5/Cetus | Started Cetus Manufacturing Module 40700 | -5/Cetus | Manufactured an Enhanced Grunt 40725 | -5/Cetus | Manufactured an Enhanced Grunt 40750 | -5/Cetus | Manufactured an Enhanced Grunt 40775 | -5/Cetus | Manufactured an Enhanced Grunt 40800 | -5/Cetus | Manufactured an Enhanced Grunt 40808 | -5/Cetus | Discovered new exit (range 15) 40849 | -5/Cetus | Spotted Cetus Guard 40850 | -5/Cetus | Spotted Cetus Guard 40852 | -5/Cetus | Spotted Cetus Guard 40858 | -5/Cetus | Allies destroyed Cetus Guard 40859 | -5/Cetus | Allies destroyed Cetus Guard 40860 | -5/Cetus | Allies destroyed Cetus Guard 40861 | -5/Cetus | Discovered exit to Factory (range 16) 40864 | -5/Cetus | Met Revision 17 40891 | -5/Cetus | Escorted A7 to Cetus Mainframe 40941 | -5/Cetus | Build established: Wizard-Sprinter 41021 | -5/Cetus | Discovered exit to Factory (range 15) 41097 | -5/Cetus | Cetus Manufacturing Module disabled 41165 | -5/Cetus | Entered Archives 41165 | -5/Archives | Accompanied by 9 allies 41175 | -5/Archives | Received a hacking code to weaken MAIN.C 41179 | -5/Archives | Unable to access archive contents 41219 | -5/Archives | Discovered new exit (range 16) 41231 | -5/Archives | Discovered exit to Factory (range 16) 41260 | -5/Archives | Discovered new exit (range 15) 41297 | -5/Archives | Unable to access archive contents 41297 | -5/Archives | Unable to access archive contents 41326 | -5/Archives | Entered Hub_04(d) 41326 | -5/Hub_04(d) | Accompanied by 4 allies 41424 | -5/Hub_04(d) | Spotted B-75 Beast 41611 | -5/Hub_04(d) | Network Hub disabled 41623 | -5/Hub_04(d) | Entered Factory 41623 | -4/Factory | Evolved 2 slots: Utility x2 41877 | -4/Factory | Discovered new exit (range 13) 41891 | -4/Factory | Identified exit to Upper Caves 41910 | -4/Factory | Sucked down chute 41910 | -4/Factory | Entered Waste 41916 | -4/Waste | Spotted C-40 Crusher 41922 | -4/Waste | Spotted C-40 Crusher 41923 | -4/Waste | Spotted C-40 Crusher 41923 | -4/Waste | Spotted C-40 Crusher 41925 | -4/Waste | EMP discharged 41925 | -4/Waste | Spotted C-40 Crusher 41926 | -4/Waste | Spotted C-40 Crusher 41932 | -4/Waste | Discovered new exit (range 16) 41957 | -4/Waste | Entered Factory 41965 | -4/Factory | Build established: Wizard-Mutant 42121 | -4/Factory | Spotted B-86 Titan 42335 | -4/Factory | Discovered new exit (range 15) 43050 | -4/Factory | Fabricated H-77 Assassin? 43557 | -4/Factory | Fabricated H-77 Assassin? 44051 | -4/Factory | Fabricated H-77 Assassin? 45123 | -4/Factory | Fabricated H-77 Assassin? 45750 | -4/Factory | First assault squad dispatched 45779 | -4/Factory | P-70 Sage assimilated allied C3-UJJ(g) 46409 | -4/Factory | Lost 3 parts (2u1w) 46484 | -4/Factory | Incoming assault squad redirected 46490 | -4/Factory | Incoming assault squad redirected 47069 | -4/Factory | Fabricated H-77 Assassin? 47934 | -4/Factory | Discovered new exit (range 11) 48214 | -4/Factory | Garrison activated, responded to threat 49214 | -4/Factory | P-70 Sage assimilated allied Administrator 7c 49453 | -4/Factory | Repaired Field Propulsion Array 49477 | -4/Factory | Incoming assault squad redirected 49756 | -4/Factory | Repaired Med. Storage Unit 49840 | -4/Factory | Repaired Field Propulsion Array 49964 | -4/Factory | Fabricated H-77 Assassin? 50225 | -4/Factory | Repaired Field Propulsion Array 50480 | -4/Factory | Incoming assault squad redirected 50807 | -4/Factory | System Shield fried by hacking feedback 50807 | -4/Factory | Imp. Hacking Suite fried by hacking feedback 51136 | -4/Factory | Core integrity fell below 50% 51363 | -4/Factory | Fabricated P-80 Master (x2) 51405 | -4/Factory | Master 7b assimilated hostile L-61 Swordsman 51410 | -4/Factory | System corruption reached 10% 51440 | -4/Factory | Lost 5 parts (1p3u1w) 51452 | -4/Factory | Entered Upper Caves 51452 | -4/Upper Caves | Accompanied by 3 allies 51471 | -4/Upper Caves | Learned Research emergency access door positions 51530 | -4/Upper Caves | Spotted B-86 Titan 51540 | -4/Upper Caves | Encountered a Warlord checkpoint 51610 | -4/Upper Caves | Discovered new exit (range 6) 51617 | -4/Upper Caves | Entered another Upper Caves area 51617 | -4/Upper Caves | Accompanied by 2 allies 51619 | -4/Upper Caves | Attracted the attention of an 0b10 checkpoint 51701 | -4/Upper Caves | Attracted the attention of an 0b10 outpost 51731 | -4/Upper Caves | Learned Research garrison access intel 51750 | -4/Upper Caves | Crushed by falling debris 51777 | -4/Upper Caves | Discovered new exit (range 8) 51782 | -4/Upper Caves | System corruption reached 30% 51782 | -4/Upper Caves | Entered Warlord 51801 | -4/Warlord | System corruption cleaned by Quarantine Array 51812 | -4/Warlord | Lost 6 parts (2n4u) 51884 | -4/Warlord | Visited the Vortex Lab 51888 | -4/Warlord | Found Prototype Energy Gun 51889 | -4/Warlord | Found Prototype Energy Gun 51891 | -4/Warlord | Found Prototype Energy Gun 51893 | -4/Warlord | Found Prototype Energy Gun 51903 | -4/Warlord | Warlord's base attacked by MAIN.C 51988 | -4/Warlord | Met Warlord 51992 | -4/Warlord | Opened Warlord's prototype stash 51995 | -4/Warlord | Found Prototype Hackware 51997 | -4/Warlord | Found Prototype Processor 51997 | -4/Warlord | Identified Exp. Armor Integrity Analyzer 51999 | -4/Warlord | Found Prototype Device 51999 | -4/Warlord | Identified Exp. Focal Shield 52085 | -4/Warlord | Build established: Hacker-Sprinter 52125 | -4/Warlord | Opened side exit 52131 | -4/Warlord | Discovered new exit (range 9) 52133 | -4/Warlord | Entered Proximity Caves 52315 | -3/Proximity Caves | Discovered new exit (range 5) 52317 | -3/Proximity Caves | Entered Research 52317 | -3/Research | Evolved 2 slots: Utility x2 52319 | -3/Research | Loaded intel: 4 garrison access locations 52356 | -3/Research | Identified Ghost Barrier 52507 | -3/Research | Spotted B-86 Titan 52509 | -3/Research | Incoming investigation squad redirected 52607 | -3/Research | Identified exit to Armory 52607 | -3/Research | Identified exit to Testing 52666 | -3/Research | Entered Armory 52914 | -3/Armory | Fabricated P-80 Master? 52925 | -3/Armory | Fabricated I-47 Archangel? 53097 | -3/Armory | Fabricated L-61 Swordsman (x3) 53104 | -3/Armory | Fabricated P-80 Master? 53133 | -3/Armory | Build established: Hacker-Mutant 53166 | -3/Armory | First assault squad dispatched 53185 | -3/Armory | Discovered new exit (range 5) 53186 | -3/Armory | Entered Research 53186 | -2/Research | Warlord forces began assault on 0b10 53186 | -2/Research | Evolved 2 slots: Utility x2 53201 | -2/Research | Met up with Warlord 53255 | -2/Research | Borebot progress halted 53281 | -2/Research | Borebot progress halted 53296 | -2/Research | Research machine network offline 53348 | -2/Research | Borebot progress halted 53390 | -2/Research | Spotted B-90 Cyclops 53410 | -2/Research | Borebot progress halted 53521 | -2/Research | Build established: Hacker-Sprinter 53544 | -2/Research | Discovered new exit (range 5) 53544 | -2/Research | Identified exit to Quarantine 53579 | -2/Research | Found Enh. Force Lance 53652 | -2/Research | Found Exp. ECM Suite 53657 | -2/Research | Discovered new exit (range 15) 53662 | -2/Research | Identified exit to Access 53662 | -2/Research | Entered Access 53662 | -1/Access | Evolved 2 slots: Power x1, Propulsion x1 53805 | -1/Access | Spotted B-99 Colossus 53807 | -1/Access | Assimilated B-99 Colossus with FLK Orb 53863 | -1/Access | Fabricated P-80 Master? 53869 | -1/Access | Identified exit to Surface 53926 | -1/Access | Identified Vortex Shotgun 53926 | -1/Access | Identified Vortex Rail (x2) 53969 | -1/Access | Garrison activated, responded to threat 53976 | -1/Access | Fabricated P-80 Master? 54036 | -1/Access | Build established: Wizard-Sprinter 54166 | -1/Access | Local fabrication network quarantined 54208 | -1/Access | Spotted B-99 Colossus 54214 | -1/Access | Spotted B-99 Colossus 54214 | -1/Access | Assimilated B-99 Colossus with FLK Orb 54217 | -1/Access | Assimilated B-99 Colossus with FLK Orb 54268 | *** | Escaped! Last Messages --------------- 54188_ Slug penetrates Wall. 54195_ Connecting with Terminal... >>Open Sealed Barrier opened. 54196_ The Access Shell folds into the floor. 54199_ Sealed Heavy Doors breached. 54214_ Slug penetrates Sealed Heavy Doors. 54214_ Penetrated by Slug. 54214_ Lgt. Quantum Reactor destroyed. 54214_ Penetrated by Slug. 54214_ Slug penetrates Sealed Heavy Doors. 54214_ B-99 Colossus assimilated. 54215_ Slug penetrates Colossus 10b. 54217_ Field Lobotomy Kit expended. 54217_ B-99 Colossus assimilated. 54246_ Slug penetrates Colossus 10c. 54249_ Slug penetrates Sealed Heavy Doors. 54261_ Y-72 Warden destroyed. 54264_ Acquired 45 matter. [Achievement: Overachiever] Map ----- +----------------------------------------------------+ | ?????????????????????????????????????????????????? | | ?????????????????????????????????????????????????? | | ?????????????????????????????????????????????????? | | ?????????????????????????????????????????????????? | | ?????????????????????????????????????????????????? | | ?????????????????????????????????????????????????? | | ????????????????????????????s????????????????????? | | ?????????????????????????????????????????????????? | | ?????????????????????????????????????????????????? | | ?????????????????????????????????????????????????? | | ?????????????????????????????????????????????????? | | ?????????????????????????????????????????????????? | | ??????????? ?????????????????????????????????????? | | ??????????# ?????????????????????????????????????? | | ??????????# ????????????????????????????????????? | | ??????????# ????????????????????????????????????? | | ??????????# ????????????????????????????????????? | | ??????????# ????????????????????????????????????? | | ??????????# ??????###???????????????????????????? | | ??????????# ####### ##########????#######???????? | | ??????????# """T""" "??? #???????? | | ??????????#u """ """ "??? #???????? | | ??????????# """" ###+###?? | | ??????????# BB " " #? | | ??????????# BB #? | | ??????????# @" #? | | ??????????# [BB """" #? | | ??????????# =%BB "??? ### #? | | ??????????# != "??? #???????? | | ??????????# u "??? #???????? | | ??????????# ####### ##########????#######???????? | | ??????????# #?????###???????????????????????????? | | ??????????# #???????????????????????????????????? | | ??????????# #????########???????????????????????? | | ??????????# #??? ???????????????????????? | | ??????????# #??? ??????????????????????? | | ??????????# #?? !! ??????????????????????? | | ??????????# #?? !! ??????????????????????? | | ??????????# #? !! ?????????????????????? | | # ????????# #? ?????????????????????? | | # ????????# # = ????????????????????? | | # ???????# # ????????????????????? | | # #??????# + | ????????????????????? | | ####### #########???????????????????????????? | | ???????????????????????? | | ######??????????????????????????????? | | # ##???????????????????????????????????? | | ##??# #????????????????????????????????????? | | ????# #????????????????????????????????????? | | ????# #????????????????????????????????????? | +----------------------------------------------------+ Best States ------------- Heat Dissipation 52 Energy Generation 38 Energy Capacity 260 Matter Stores 300 Matter Capacity 300 Sight Range 20 Robot Scan Range 20 Terrain Scan Range 18 Terrain Scan Density 10 ECM Strength 5 Cloak Strength 3 Armor Coverage 150 Resistance: KI 30 Resistance: EM 15 Propulsion Shielding 66 Melee Speed Boost 20 Phase Shifting 10 Evasion (%) 78 Targeting Accuracy 8 Melee Accuracy 30 Armor Integrity Analysis 90 Recoil Reduction 3 Offensive Hacking 74 Defensive Hacking 82 Item Schematics ----------------- Hvy. Assault Rifle | -8/Materials | Scanalyzed Imp. Flight Unit | -8/Materials | Scanalyzed System Shield | -8/Materials | Hacked Adv. System Shield | -6/Factory | Hacked Combat Drone Bay | -6/Data Miner | Free Lgt. Regenerative Plating | -6/Data Miner | Free Cmb. Gravmag System | -6/Data Miner | Free Exp. Sensor Array | -6/Data Miner | Free Exp. Targeting Computer | -6/Data Miner | Free Exp. Transmission Jammer | -6/Data Miner | Free Cloaking Device | -6/Data Miner | Free Adv. Hacking Suite | -5/Factory | Hacked Imp. Remote Shield | -5/Extension | Hacked Antimissile System | -5/Extension | Hacked Q-thruster | -5/Extension | Hacked Imp. Phase Shifter | -5/Extension | Hacked Variable Charge Gun | -5/Hub_04(d) | Hacked Robot Schematics ------------------ H-55 Commando | -8/Materials | Hacked P-60 Hacker | -7/Factory | Hacked O-24 Administrator | -7/Factory | Hacked I-36 Angel | -7/Factory | Hacked M-28 Smith | -7/Factory | Hacked L-41 Fighter | -7/Factory | Hacked H-66 Slayer | -6/Factory | Hacked P-70 Sage | -6/Factory | Hacked X-72 Disruptor | -6/Factory | Hacked I-47 Archangel | -6/Data Miner | Free S-27 Virus | -6/Data Miner | Free G-50 Soldier | -6/Data Miner | Free G-67 Veteran | -6/Data Miner | Free H-77 Assassin | -5/Factory | Hacked M-13 Machinist | -5/Extension | Hacked S-10 Pest | -5/Extension | Hacked E-15 Imp | -4/Factory | Hacked Y-72 Warden | -4/Factory | Hacked P-80 Master | -4/Factory | Hacked I-25 Savior | -4/Factory | Hacked L-61 Swordsman | -3/Research | Hacked Fabricated ------------ System Shield | x1 | -7/Factory P-60 Hacker | x2 | -7/Factory System Shield | x1 | -7/Factory H-55 Commando | x2 | -7/Factory H-55 Commando | x2 | -7/Factory H-55 Commando | x2 | -7/Factory H-55 Commando | x2 | -7/Factory H-55 Commando | x2 | -7/Factory H-55 Commando | x2 | -7/Factory I-36 Angel | x1 | -7/Factory H-55 Commando | x2 | -7/Factory M-28 Smith | x1 | -7/Factory M-28 Smith | x1 | -7/Factory L-41 Fighter | x3 | -6/Factory L-41 Fighter | x3 | -6/Factory L-41 Fighter | x3 | -6/Factory Imp. System Shield | x1 | -6/Factory | Preloaded M-28 Smith | x1 | -6/Factory I-36 Angel | x1 | -6/Factory H-66 Slayer | x2 | -6/Factory H-66 Slayer | x2 | -6/Factory H-66 Slayer | x2 | -6/Factory H-66 Slayer | x2 | -6/Factory P-70 Sage | x2 | -6/Factory P-70 Sage | x2 | -6/Factory X-72 Disruptor | x2 | -6/Factory X-72 Disruptor | x2 | -6/Factory O-24 Administrator | x1 | -6/Factory H-55 Commando | x2 | -6/Factory H-66 Slayer | x2 | -6/Factory M-28 Smith | x1 | -5/Factory H-77 Assassin | x2 | -5/Factory H-77 Assassin | x2 | -4/Factory H-77 Assassin | x2 | -4/Factory H-77 Assassin | x2 | -4/Factory H-77 Assassin | x2 | -4/Factory H-77 Assassin | x2 | -4/Factory H-77 Assassin | x2 | -4/Factory P-80 Master | x2 | -4/Factory P-80 Master | x2 | -3/Armory I-47 Archangel | x1 | -3/Armory L-61 Swordsman | x3 | -3/Armory P-80 Master | x2 | -3/Armory P-80 Master | x2 | -1/Access P-80 Master | x2 | -1/Access Alien Tech Used ----------------- None Achievements -------------- Beloved Main Advantage Overachiever Preemptive Strike Challenges ------------ None Game ------ Seed ProcessingScanLoader Manual? 0 Play Time 11:18:07 Cumulative 90.3 hours Start 2020.06.03 @ 13:13:40 End 2020.06.07 @ 13:11:25 Sessions 16 Manual Loads 0 Difficulty Rogue Special Mode None Game No. 42 Rogue 42 Adventurer 0 Explorer 0 Win Type 0 Total 4 Types 3/0/0/1/0/0/0 Lore% 62 Gallery% 58 Achievement% 50 Wizard Run 0 Options --------- ASCII 1 Keyboard 0 Movement Numpad Keybinds 0 Fullscreen 1 Font 18/SmallcapsGlow Map View 76x50 Tactical HUD 1 Map Filters NONE Filters NONE Steam 1 RUN: 457ff51a-a8e3-41e8-9858-ce61fad7d560